Workbook

Sheet Urliste
B2: Beispiel: Korrektur Matheklausur in der Oberstufe
B4: Hier kann das Ergebnis der Korrekur von 30 Matheklausuren eingegeben bzw. zufällig generiert werden.
B6: Nummer der Klausur | D6: 1 | E6: 2 | F6: 3 | G6: 4 | H6: 5 | I6: 6 | J6: 7 | K6: 8 | L6: 9 | M6: 10 | N6: 11 | O6: 12 | P6: 13 | Q6: 14 | R6: 15 | S6: 16 | T6: 17 | U6: 18 | V6: 19 | W6: 20 | X6: 21 | Y6: 22 | Z6: 23 | AA6: 24 | AB6: 25 | AC6: 26 | AD6: 27 | AE6: 28 | AF6: 29 | AG6: 30
B7: Notenpunkte | D7: 12 | E7: 13 | F7: 8 | G7: 7 | H7: 8 | I7: 10 | J7: 2 | K7: 13 | L7: 7 | M7: 13 | N7: 8 | O7: 13 | P7: 14 | Q7: 5 | R7: 10 | S7: 14 | T7: 9 | U7: 13 | V7: 14 | W7: 7 | X7: 13 | Y7: 11 | Z7: 10 | AA7: 13 | AB7: 11 | AC7: 12 | AD7: 8 | AE7: 12 | AF7: 15 | AG7: 15
D10: =IF($J$19=TRUE,D11,RANDBETWEEN($J$14,$J$16)) -> 9 | E10: =IF($J$19=TRUE,E11,RANDBETWEEN($J$14,$J$16)) -> 14 | F10: 12 | G10: 11 | H10: 9 | I10: 13 | J10: 6 | K10: 12 | L10: 12 | M10: 11 | N10: 8 | O10: 10 | P10: 11 | Q10: 11 | R10: 8 | S10: 11 | T10: 8 | U10: 8 | V10: 6 | W10: 8 | X10: 15 | Y10: 8 | Z10: 8 | AA10: 9 | AB10: 8 | AC10: 7 | AD10: 7 | AE10: 12 | AF10: 9 | AG10: 12
D11: =ROUND(MAX(MIN(_xlfn.NORM.INV(RAND(),$K$21,$K$20),$J$16),$J$14),0) -> 9 | E11: 14 | F11: 12 | G11: 11 | H11: 9 | I11: 13 | J11: 6 | K11: 12 | L11: 12 | M11: 11 | N11: 8 | O11: 10 | P11: 11 | Q11: 11 | R11: 8 | S11: 11 | T11: 8 | U11: 8 | V11: 6 | W11: 8 | X11: 15 | Y11: 8 | Z11: 8 | AA11: 9 | AB11: 8 | AC11: 7 | AD11: 7 | AE11: 12 | AF11: 9 | AG11: 12
D14: kleinster Zufallswert: | J14: 0
D16: größter Zufallswert: | J16: 15
E19: Normalverteilung: | J19: TRUE
E20: Standardabweichung: | K20: 2.6
E21: Mittelwert: | K21: 10 | W21: Schritte 1. - 5. können per Makro durchgeführt werden mit
W22: Tastenkombination: | AB22: Strg + N
B24: Anzahl der Klausuren, die auf den anderen Tabellenblättern verwendet werden (0-30): | P24: 8

Sheet Säulendiagramm
B2: Beispiel: Korrektur Matheklausur in der Oberstufe | AA2: ( | AB2: Anzahl der Klausuren: | AH2: =Urliste!P24 -> 8 | AI2: ) | AS2: FALSE
B4: Urliste:
B6: Nummer der Klausur | D6: 1 | E6: 2 | F6: 3 | G6: 4 | H6: 5 | I6: 6 | J6: 7 | K6: 8 | L6: 9 | M6: 10 | N6: 11 | O6: 12 | P6: 13 | Q6: 14 | R6: 15 | S6: 16 | T6: 17 | U6: 18 | V6: 19 | W6: 20 | X6: 21 | Y6: 22 | Z6: 23 | AA6: 24 | AB6: 25 | AC6: 26 | AD6: 27 | AE6: 28 | AF6: 29 | AG6: 30
B7: Notenpunkte | D7: =IF(D6<=$AH$2,Urliste!D7,"") -> 12 | E7: =IF(E6<=$AH$2,Urliste!E7,"") -> 13 | F7: =IF(F6<=$AH$2,Urliste!F7,"") -> 8 | G7: =IF(G6<=$AH$2,Urliste!G7,"") -> 7 | H7: =IF(H6<=$AH$2,Urliste!H7,"") -> 8 | I7: =IF(I6<=$AH$2,Urliste!I7,"") -> 10 | J7: =IF(J6<=$AH$2,Urliste!J7,"") -> 2 | K7: =IF(K6<=$AH$2,Urliste!K7,"") -> 13 | L7: =IF(L6<=$AH$2,Urliste!L7,"") ->  | M7: =IF(M6<=$AH$2,Urliste!M7,"") ->  | N7: =IF(N6<=$AH$2,Urliste!N7,"") ->  | O7: =IF(O6<=$AH$2,Urliste!O7,"") ->  | P7: =IF(P6<=$AH$2,Urliste!P7,"") ->  | Q7: =IF(Q6<=$AH$2,Urliste!Q7,"") ->  | R7: =IF(R6<=$AH$2,Urliste!R7,"") ->  | S7: =IF(S6<=$AH$2,Urliste!S7,"") ->  | T7: =IF(T6<=$AH$2,Urliste!T7,"") ->  | U7: =IF(U6<=$AH$2,Urliste!U7,"") ->  | V7: =IF(V6<=$AH$2,Urliste!V7,"") ->  | W7: =IF(W6<=$AH$2,Urliste!W7,"") ->  | X7: =IF(X6<=$AH$2,Urliste!X7,"") ->  | Y7: =IF(Y6<=$AH$2,Urliste!Y7,"") ->  | Z7: =IF(Z6<=$AH$2,Urliste!Z7,"") ->  | AA7: =IF(AA6<=$AH$2,Urliste!AA7,"") ->  | AB7: =IF(AB6<=$AH$2,Urliste!AB7,"") ->  | AC7: =IF(AC6<=$AH$2,Urliste!AC7,"") ->  | AD7: =IF(AD6<=$AH$2,Urliste!AD7,"") ->  | AE7: =IF(AE6<=$AH$2,Urliste!AE7,"") ->  | AF7: =IF(AF6<=$AH$2,Urliste!AF7,"") ->  | AG7: =IF(AG6<=$AH$2,Urliste!AG7,"") -> 
B10: Häufigkeitstabelle:
D11: =D13*D12 -> 0 | F11: =F13*F12 -> 0 | H11: =H13*H12 -> 26 | J11: =J13*J12 -> 12 | L11: =L13*L12 -> 0 | N11: =N13*N12 -> 10 | P11: =P13*P12 -> 0 | R11: =R13*R12 -> 16 | T11: =T13*T12 -> 7 | V11: =V13*V12 -> 0 | X11: =X13*X12 -> 0 | Z11: =Z13*Z12 -> 0 | AB11: =AB13*AB12 -> 0 | AD11: =AD13*AD12 -> 2 | AF11: =AF13*AF12 -> 0 | AH11: =AH13*AH12 -> 0
B12: Notenpunkte | D12: 15 | F12: 14 | H12: 13 | J12: 12 | L12: 11 | N12: 10 | P12: 9 | R12: 8 | T12: 7 | V12: 6 | X12: 5 | Z12: 4 | AB12: 3 | AD12: 2 | AF12: 1 | AH12: 0 | AK12: Summe
B13: absolute Häufigkeit | D13: =COUNTIF($D$7:$AG$7,D12) -> 0 | F13: =COUNTIF($D$7:$AG$7,F12) -> 0 | H13: =COUNTIF($D$7:$AG$7,H12) -> 2 | J13: =COUNTIF($D$7:$AG$7,J12) -> 1 | L13: =COUNTIF($D$7:$AG$7,L12) -> 0 | N13: =COUNTIF($D$7:$AG$7,N12) -> 1 | P13: =COUNTIF($D$7:$AG$7,P12) -> 0 | R13: =COUNTIF($D$7:$AG$7,R12) -> 2 | T13: =COUNTIF($D$7:$AG$7,T12) -> 1 | V13: =COUNTIF($D$7:$AG$7,V12) -> 0 | X13: =COUNTIF($D$7:$AG$7,X12) -> 0 | Z13: =COUNTIF($D$7:$AG$7,Z12) -> 0 | AB13: =COUNTIF($D$7:$AG$7,AB12) -> 0 | AD13: =COUNTIF($D$7:$AG$7,AD12) -> 1 | AF13: =COUNTIF($D$7:$AG$7,AF12) -> 0 | AH13: =COUNTIF($D$7:$AG$7,AH12) -> 0 | AK13: =SUM(D13:AI13) -> 8
B14: relative Häufigkeit | D14: =ROUND(D13/$AH$2,3) -> 0 | F14: =ROUND(F13/$AH$2,3) -> 0 | H14: =ROUND(H13/$AH$2,3) -> 0.25 | J14: =ROUND(J13/$AH$2,3) -> 0.125 | L14: =ROUND(L13/$AH$2,3) -> 0 | N14: =ROUND(N13/$AH$2,3) -> 0.125 | P14: =ROUND(P13/$AH$2,3) -> 0 | R14: =ROUND(R13/$AH$2,3) -> 0.25 | T14: =ROUND(T13/$AH$2,3) -> 0.125 | V14: =ROUND(V13/$AH$2,3) -> 0 | X14: =ROUND(X13/$AH$2,3) -> 0 | Z14: =ROUND(Z13/$AH$2,3) -> 0 | AB14: =ROUND(AB13/$AH$2,3) -> 0 | AD14: =ROUND(AD13/$AH$2,3) -> 0.125 | AF14: =ROUND(AF13/$AH$2,3) -> 0 | AH14: =ROUND(AH13/$AH$2,3) -> 0 | AK14: =SUM(D14:AI14) -> 1
D15: =ROUND(D14,3) -> 0 | F15: =ROUND(F14,3) -> 0 | H15: =ROUND(H14,3) -> 0.25 | J15: =ROUND(J14,3) -> 0.125 | L15: =ROUND(L14,3) -> 0 | N15: =ROUND(N14,3) -> 0.125 | P15: =ROUND(P14,3) -> 0 | R15: =ROUND(R14,3) -> 0.25 | T15: =ROUND(T14,3) -> 0.125 | V15: =ROUND(V14,3) -> 0 | X15: =ROUND(X14,3) -> 0 | Z15: =ROUND(Z14,3) -> 0 | AB15: =ROUND(AB14,3) -> 0 | AD15: =ROUND(AD14,3) -> 0.125 | AF15: =ROUND(AF14,3) -> 0 | AH15: =ROUND(AH14,3) -> 0
D16: =D14*D12 -> 0 | F16: =F14*F12 -> 0 | H16: =H14*H12 -> 3.25 | J16: =J14*J12 -> 1.5 | L16: =L14*L12 -> 0 | N16: =N14*N12 -> 1.25 | P16: =P14*P12 -> 0 | R16: =R14*R12 -> 2 | T16: =T14*T12 -> 0.875 | V16: =V14*V12 -> 0 | X16: =X14*X12 -> 0 | Z16: =Z14*Z12 -> 0 | AB16: =AB14*AB12 -> 0 | AD16: =AD14*AD12 -> 0.25 | AF16: =AF14*AF12 -> 0 | AH16: =AH14*AH12 -> 0
B17: Säulendiagramm: | D17: =IF($AS$2=FALSE,D13,"") -> 0 | F17: =IF($AS$2=FALSE,F13,"") -> 0 | H17: =IF($AS$2=FALSE,H13,"") -> 2 | J17: =IF($AS$2=FALSE,J13,"") -> 1 | L17: =IF($AS$2=FALSE,L13,"") -> 0 | N17: =IF($AS$2=FALSE,N13,"") -> 1 | P17: =IF($AS$2=FALSE,P13,"") -> 0 | R17: =IF($AS$2=FALSE,R13,"") -> 2 | T17: =IF($AS$2=FALSE,T13,"") -> 1 | V17: =IF($AS$2=FALSE,V13,"") -> 0 | X17: =IF($AS$2=FALSE,X13,"") -> 0 | Z17: =IF($AS$2=FALSE,Z13,"") -> 0 | AB17: =IF($AS$2=FALSE,AB13,"") -> 0 | AD17: =IF($AS$2=FALSE,AD13,"") -> 1 | AF17: =IF($AS$2=FALSE,AF13,"") -> 0 | AH17: =IF($AS$2=FALSE,AH13,"") -> 0

Sheet Klassen 1
B2: Beispiel: Korrektur Matheklausur in der Oberstufe | AA2: ( | AB2: Anzahl der Klausuren: | AH2: =Urliste!P24 -> 8 | AI2: ) | AR2: FALSE
B4: Urliste:
B6: Nummer der Klausur | D6: 1 | E6: 2 | F6: 3 | G6: 4 | H6: 5 | I6: 6 | J6: 7 | K6: 8 | L6: 9 | M6: 10 | N6: 11 | O6: 12 | P6: 13 | Q6: 14 | R6: 15 | S6: 16 | T6: 17 | U6: 18 | V6: 19 | W6: 20 | X6: 21 | Y6: 22 | Z6: 23 | AA6: 24 | AB6: 25 | AC6: 26 | AD6: 27 | AE6: 28 | AF6: 29 | AG6: 30
B7: Notenpunkte | D7: =IF(D6<=$AH$2,Urliste!D7,"") -> 12 | E7: =IF(E6<=$AH$2,Urliste!E7,"") -> 13 | F7: =IF(F6<=$AH$2,Urliste!F7,"") -> 8 | G7: =IF(G6<=$AH$2,Urliste!G7,"") -> 7 | H7: =IF(H6<=$AH$2,Urliste!H7,"") -> 8 | I7: =IF(I6<=$AH$2,Urliste!I7,"") -> 10 | J7: =IF(J6<=$AH$2,Urliste!J7,"") -> 2 | K7: =IF(K6<=$AH$2,Urliste!K7,"") -> 13 | L7: =IF(L6<=$AH$2,Urliste!L7,"") ->  | M7: =IF(M6<=$AH$2,Urliste!M7,"") ->  | N7: =IF(N6<=$AH$2,Urliste!N7,"") ->  | O7: =IF(O6<=$AH$2,Urliste!O7,"") ->  | P7: =IF(P6<=$AH$2,Urliste!P7,"") ->  | Q7: =IF(Q6<=$AH$2,Urliste!Q7,"") ->  | R7: =IF(R6<=$AH$2,Urliste!R7,"") ->  | S7: =IF(S6<=$AH$2,Urliste!S7,"") ->  | T7: =IF(T6<=$AH$2,Urliste!T7,"") ->  | U7: =IF(U6<=$AH$2,Urliste!U7,"") ->  | V7: =IF(V6<=$AH$2,Urliste!V7,"") ->  | W7: =IF(W6<=$AH$2,Urliste!W7,"") ->  | X7: =IF(X6<=$AH$2,Urliste!X7,"") ->  | Y7: =IF(Y6<=$AH$2,Urliste!Y7,"") ->  | Z7: =IF(Z6<=$AH$2,Urliste!Z7,"") ->  | AA7: =IF(AA6<=$AH$2,Urliste!AA7,"") ->  | AB7: =IF(AB6<=$AH$2,Urliste!AB7,"") ->  | AC7: =IF(AC6<=$AH$2,Urliste!AC7,"") ->  | AD7: =IF(AD6<=$AH$2,Urliste!AD7,"") ->  | AE7: =IF(AE6<=$AH$2,Urliste!AE7,"") ->  | AF7: =IF(AF6<=$AH$2,Urliste!AF7,"") ->  | AG7: =IF(AG6<=$AH$2,Urliste!AG7,"") -> 
B10: Häufigkeitstabelle:
D11: =D13*D12 -> 0 | F11: =F13*F12 -> 0 | H11: =H13*H12 -> 26 | J11: =J13*J12 -> 12 | L11: =L13*L12 -> 0 | N11: =N13*N12 -> 10 | P11: =P13*P12 -> 0 | R11: =R13*R12 -> 16 | T11: =T13*T12 -> 7 | V11: =V13*V12 -> 0 | X11: =X13*X12 -> 0 | Z11: =Z13*Z12 -> 0 | AB11: =AB13*AB12 -> 0 | AD11: =AD13*AD12 -> 2 | AF11: =AF13*AF12 -> 0 | AH11: =AH13*AH12 -> 0
B12: Notenpunkte | D12: 15 | F12: 14 | H12: 13 | J12: 12 | L12: 11 | N12: 10 | P12: 9 | R12: 8 | T12: 7 | V12: 6 | X12: 5 | Z12: 4 | AB12: 3 | AD12: 2 | AF12: 1 | AH12: 0 | AK12: Summe
B13: absolute Häufigkeit | D13: =COUNTIF($D$7:$AG$7,D12) -> 0 | F13: =COUNTIF($D$7:$AG$7,F12) -> 0 | H13: =COUNTIF($D$7:$AG$7,H12) -> 2 | J13: =COUNTIF($D$7:$AG$7,J12) -> 1 | L13: =COUNTIF($D$7:$AG$7,L12) -> 0 | N13: =COUNTIF($D$7:$AG$7,N12) -> 1 | P13: =COUNTIF($D$7:$AG$7,P12) -> 0 | R13: =COUNTIF($D$7:$AG$7,R12) -> 2 | T13: =COUNTIF($D$7:$AG$7,T12) -> 1 | V13: =COUNTIF($D$7:$AG$7,V12) -> 0 | X13: =COUNTIF($D$7:$AG$7,X12) -> 0 | Z13: =COUNTIF($D$7:$AG$7,Z12) -> 0 | AB13: =COUNTIF($D$7:$AG$7,AB12) -> 0 | AD13: =COUNTIF($D$7:$AG$7,AD12) -> 1 | AF13: =COUNTIF($D$7:$AG$7,AF12) -> 0 | AH13: =COUNTIF($D$7:$AG$7,AH12) -> 0 | AK13: =SUM(D13:AI13) -> 8
B14: relative Häufigkeit | D14: =ROUND(D13/$AH$2,3) -> 0 | F14: =ROUND(F13/$AH$2,3) -> 0 | H14: =ROUND(H13/$AH$2,3) -> 0.25 | J14: =ROUND(J13/$AH$2,3) -> 0.125 | L14: =ROUND(L13/$AH$2,3) -> 0 | N14: =ROUND(N13/$AH$2,3) -> 0.125 | P14: =ROUND(P13/$AH$2,3) -> 0 | R14: =ROUND(R13/$AH$2,3) -> 0.25 | T14: =ROUND(T13/$AH$2,3) -> 0.125 | V14: =ROUND(V13/$AH$2,3) -> 0 | X14: =ROUND(X13/$AH$2,3) -> 0 | Z14: =ROUND(Z13/$AH$2,3) -> 0 | AB14: =ROUND(AB13/$AH$2,3) -> 0 | AD14: =ROUND(AD13/$AH$2,3) -> 0.125 | AF14: =ROUND(AF13/$AH$2,3) -> 0 | AH14: =ROUND(AH13/$AH$2,3) -> 0 | AK14: =SUM(D14:AI14) -> 1
D15: =ROUND(D14,3) -> 0 | F15: =ROUND(F14,3) -> 0 | H15: =ROUND(H14,3) -> 0.25 | J15: =ROUND(J14,3) -> 0.125 | L15: =ROUND(L14,3) -> 0 | N15: =ROUND(N14,3) -> 0.125 | P15: =ROUND(P14,3) -> 0 | R15: =ROUND(R14,3) -> 0.25 | T15: =ROUND(T14,3) -> 0.125 | V15: =ROUND(V14,3) -> 0 | X15: =ROUND(X14,3) -> 0 | Z15: =ROUND(Z14,3) -> 0 | AB15: =ROUND(AB14,3) -> 0 | AD15: =ROUND(AD14,3) -> 0.125 | AF15: =ROUND(AF14,3) -> 0 | AH15: =ROUND(AH14,3) -> 0
D16: =D14*D12 -> 0 | F16: =F14*F12 -> 0 | H16: =H14*H12 -> 3.25 | J16: =J14*J12 -> 1.5 | L16: =L14*L12 -> 0 | N16: =N14*N12 -> 1.25 | P16: =P14*P12 -> 0 | R16: =R14*R12 -> 2 | T16: =T14*T12 -> 0.875 | V16: =V14*V12 -> 0 | X16: =X14*X12 -> 0 | Z16: =Z14*Z12 -> 0 | AB16: =AB14*AB12 -> 0 | AD16: =AD14*AD12 -> 0.25 | AF16: =AF14*AF12 -> 0 | AH16: =AH14*AH12 -> 0
B17: Klasseneinteilung (Zensuren): | K17: TRUE
B19: Zensuren | D19: 1 | F19: 2 | H19: 3 | J19: 4 | L19: 5 | N19: 6 | Q19: Summe
B20: absolute Häufigkeit | D20: =IF($AR$2=FALSE,SUM(D13:I13),"") -> 2 | F20: =IF($AR$2=FALSE,SUM(J13:O13),"") -> 2 | H20: =IF($AR$2=FALSE,SUM(P13:U13),"") -> 3 | J20: =IF($AR$2=FALSE,SUM(V13:AA13),"") -> 0 | L20: =IF($AR$2=FALSE,SUM(AB13:AG13),"") -> 1 | N20: =IF($AR$2=FALSE,SUM(AH13),"") -> 0 | Q20: =SUM(D20:O20) -> 8
B21: relative Häufigkeit | D21: =ROUND(D20/$AH$2,3) -> 0.25 | F21: =ROUND(F20/$AH$2,3) -> 0.25 | H21: =ROUND(H20/$AH$2,3) -> 0.375 | J21: =ROUND(J20/$AH$2,3) -> 0 | L21: =ROUND(L20/$AH$2,3) -> 0.125 | N21: =ROUND(N20/$AH$2,3) -> 0 | Q21: =SUM(D21:O21) -> 1
B23: Säulendiagramm: | S23: Kreisdiagramm:

Sheet Klassen 2
B2: Beispiel: Korrektur Matheklausur in der Oberstufe | AA2: ( | AB2: Anzahl der Klausuren: | AH2: =Urliste!P24 -> 8 | AI2: ) | AQ2: FALSE
B4: Urliste:
B6: Nummer der Klausur | D6: 1 | E6: 2 | F6: 3 | G6: 4 | H6: 5 | I6: 6 | J6: 7 | K6: 8 | L6: 9 | M6: 10 | N6: 11 | O6: 12 | P6: 13 | Q6: 14 | R6: 15 | S6: 16 | T6: 17 | U6: 18 | V6: 19 | W6: 20 | X6: 21 | Y6: 22 | Z6: 23 | AA6: 24 | AB6: 25 | AC6: 26 | AD6: 27 | AE6: 28 | AF6: 29 | AG6: 30
B7: Notenpunkte | D7: =IF(D6<=$AH$2,Urliste!D7,"") -> 12 | E7: =IF(E6<=$AH$2,Urliste!E7,"") -> 13 | F7: =IF(F6<=$AH$2,Urliste!F7,"") -> 8 | G7: =IF(G6<=$AH$2,Urliste!G7,"") -> 7 | H7: =IF(H6<=$AH$2,Urliste!H7,"") -> 8 | I7: =IF(I6<=$AH$2,Urliste!I7,"") -> 10 | J7: =IF(J6<=$AH$2,Urliste!J7,"") -> 2 | K7: =IF(K6<=$AH$2,Urliste!K7,"") -> 13 | L7: =IF(L6<=$AH$2,Urliste!L7,"") ->  | M7: =IF(M6<=$AH$2,Urliste!M7,"") ->  | N7: =IF(N6<=$AH$2,Urliste!N7,"") ->  | O7: =IF(O6<=$AH$2,Urliste!O7,"") ->  | P7: =IF(P6<=$AH$2,Urliste!P7,"") ->  | Q7: =IF(Q6<=$AH$2,Urliste!Q7,"") ->  | R7: =IF(R6<=$AH$2,Urliste!R7,"") ->  | S7: =IF(S6<=$AH$2,Urliste!S7,"") ->  | T7: =IF(T6<=$AH$2,Urliste!T7,"") ->  | U7: =IF(U6<=$AH$2,Urliste!U7,"") ->  | V7: =IF(V6<=$AH$2,Urliste!V7,"") ->  | W7: =IF(W6<=$AH$2,Urliste!W7,"") ->  | X7: =IF(X6<=$AH$2,Urliste!X7,"") ->  | Y7: =IF(Y6<=$AH$2,Urliste!Y7,"") ->  | Z7: =IF(Z6<=$AH$2,Urliste!Z7,"") ->  | AA7: =IF(AA6<=$AH$2,Urliste!AA7,"") ->  | AB7: =IF(AB6<=$AH$2,Urliste!AB7,"") ->  | AC7: =IF(AC6<=$AH$2,Urliste!AC7,"") ->  | AD7: =IF(AD6<=$AH$2,Urliste!AD7,"") ->  | AE7: =IF(AE6<=$AH$2,Urliste!AE7,"") ->  | AF7: =IF(AF6<=$AH$2,Urliste!AF7,"") ->  | AG7: =IF(AG6<=$AH$2,Urliste!AG7,"") -> 
B10: Häufigkeitstabelle:
D11: =D13*D12 -> 0 | F11: =F13*F12 -> 0 | H11: =H13*H12 -> 26 | J11: =J13*J12 -> 12 | L11: =L13*L12 -> 0 | N11: =N13*N12 -> 10 | P11: =P13*P12 -> 0 | R11: =R13*R12 -> 16 | T11: =T13*T12 -> 7 | V11: =V13*V12 -> 0 | X11: =X13*X12 -> 0 | Z11: =Z13*Z12 -> 0 | AB11: =AB13*AB12 -> 0 | AD11: =AD13*AD12 -> 2 | AF11: =AF13*AF12 -> 0 | AH11: =AH13*AH12 -> 0
B12: Notenpunkte | D12: 15 | F12: 14 | H12: 13 | J12: 12 | L12: 11 | N12: 10 | P12: 9 | R12: 8 | T12: 7 | V12: 6 | X12: 5 | Z12: 4 | AB12: 3 | AD12: 2 | AF12: 1 | AH12: 0 | AK12: Summe
B13: absolute Häufigkeit | D13: =COUNTIF($D$7:$AG$7,D12) -> 0 | F13: =COUNTIF($D$7:$AG$7,F12) -> 0 | H13: =COUNTIF($D$7:$AG$7,H12) -> 2 | J13: =COUNTIF($D$7:$AG$7,J12) -> 1 | L13: =COUNTIF($D$7:$AG$7,L12) -> 0 | N13: =COUNTIF($D$7:$AG$7,N12) -> 1 | P13: =COUNTIF($D$7:$AG$7,P12) -> 0 | R13: =COUNTIF($D$7:$AG$7,R12) -> 2 | T13: =COUNTIF($D$7:$AG$7,T12) -> 1 | V13: =COUNTIF($D$7:$AG$7,V12) -> 0 | X13: =COUNTIF($D$7:$AG$7,X12) -> 0 | Z13: =COUNTIF($D$7:$AG$7,Z12) -> 0 | AB13: =COUNTIF($D$7:$AG$7,AB12) -> 0 | AD13: =COUNTIF($D$7:$AG$7,AD12) -> 1 | AF13: =COUNTIF($D$7:$AG$7,AF12) -> 0 | AH13: =COUNTIF($D$7:$AG$7,AH12) -> 0 | AK13: =SUM(D13:AI13) -> 8
B14: relative Häufigkeit | D14: =ROUND(D13/$AH$2,3) -> 0 | F14: =ROUND(F13/$AH$2,3) -> 0 | H14: =ROUND(H13/$AH$2,3) -> 0.25 | J14: =ROUND(J13/$AH$2,3) -> 0.125 | L14: =ROUND(L13/$AH$2,3) -> 0 | N14: =ROUND(N13/$AH$2,3) -> 0.125 | P14: =ROUND(P13/$AH$2,3) -> 0 | R14: =ROUND(R13/$AH$2,3) -> 0.25 | T14: =ROUND(T13/$AH$2,3) -> 0.125 | V14: =ROUND(V13/$AH$2,3) -> 0 | X14: =ROUND(X13/$AH$2,3) -> 0 | Z14: =ROUND(Z13/$AH$2,3) -> 0 | AB14: =ROUND(AB13/$AH$2,3) -> 0 | AD14: =ROUND(AD13/$AH$2,3) -> 0.125 | AF14: =ROUND(AF13/$AH$2,3) -> 0 | AH14: =ROUND(AH13/$AH$2,3) -> 0 | AK14: =SUM(D14:AI14) -> 1
D15: =ROUND(D14,3) -> 0 | F15: =ROUND(F14,3) -> 0 | H15: =ROUND(H14,3) -> 0.25 | J15: =ROUND(J14,3) -> 0.125 | L15: =ROUND(L14,3) -> 0 | N15: =ROUND(N14,3) -> 0.125 | P15: =ROUND(P14,3) -> 0 | R15: =ROUND(R14,3) -> 0.25 | T15: =ROUND(T14,3) -> 0.125 | V15: =ROUND(V14,3) -> 0 | X15: =ROUND(X14,3) -> 0 | Z15: =ROUND(Z14,3) -> 0 | AB15: =ROUND(AB14,3) -> 0 | AD15: =ROUND(AD14,3) -> 0.125 | AF15: =ROUND(AF14,3) -> 0 | AH15: =ROUND(AH14,3) -> 0
D16: =D14*D12 -> 0 | F16: =F14*F12 -> 0 | H16: =H14*H12 -> 3.25 | J16: =J14*J12 -> 1.5 | L16: =L14*L12 -> 0 | N16: =N14*N12 -> 1.25 | P16: =P14*P12 -> 0 | R16: =R14*R12 -> 2 | T16: =T14*T12 -> 0.875 | V16: =V14*V12 -> 0 | X16: =X14*X12 -> 0 | Z16: =Z14*Z12 -> 0 | AB16: =AB14*AB12 -> 0 | AD16: =AD14*AD12 -> 0.25 | AF16: =AF14*AF12 -> 0 | AH16: =AH14*AH12 -> 0
B17: Klasseneinteilung (3 Klassen): | K17: TRUE
B19: Klasse | D19: 10-15 Punkte | K19: 5-9 Punkte | R19: 0-4 Punkte | Z19: Summe
B20: absolute Häufigkeit | D20: =IF($AQ$2=FALSE,SUM(D13:O13),"") -> 4 | K20: =IF($AQ$2=FALSE,SUM(P13:Y13),"") -> 3 | R20: =IF($AQ$2=FALSE,SUM(Z13:AI13),"") -> 1 | Z20: =SUM(D20:X20) -> 8
B21: relative Häufigkeit | D21: =ROUND(D20/$AH$2,3) -> 0.5 | K21: =ROUND(K20/$AH$2,3) -> 0.375 | R21: =ROUND(R20/$AH$2,3) -> 0.125 | Z21: =SUM(D21:X21) -> 1
B23: Säulendiagramm: | S23: Kreisdiagramm:

Sheet arithm. Mittel
B2: Beispiel: Korrektur Matheklausur in der Oberstufe | AA2: ( | AB2: Anzahl der Klausuren: | AH2: =Urliste!P24 -> 8 | AI2: ) | AR2: FALSE
B4: Urliste:
B6: Nummer der Klausur | D6: 1 | E6: 2 | F6: 3 | G6: 4 | H6: 5 | I6: 6 | J6: 7 | K6: 8 | L6: 9 | M6: 10 | N6: 11 | O6: 12 | P6: 13 | Q6: 14 | R6: 15 | S6: 16 | T6: 17 | U6: 18 | V6: 19 | W6: 20 | X6: 21 | Y6: 22 | Z6: 23 | AA6: 24 | AB6: 25 | AC6: 26 | AD6: 27 | AE6: 28 | AF6: 29 | AG6: 30
B7: Notenpunkte | D7: =IF(D6<=$AH$2,Urliste!D7,"") -> 12 | E7: =IF(E6<=$AH$2,Urliste!E7,"") -> 13 | F7: =IF(F6<=$AH$2,Urliste!F7,"") -> 8 | G7: =IF(G6<=$AH$2,Urliste!G7,"") -> 7 | H7: =IF(H6<=$AH$2,Urliste!H7,"") -> 8 | I7: =IF(I6<=$AH$2,Urliste!I7,"") -> 10 | J7: =IF(J6<=$AH$2,Urliste!J7,"") -> 2 | K7: =IF(K6<=$AH$2,Urliste!K7,"") -> 13 | L7: =IF(L6<=$AH$2,Urliste!L7,"") ->  | M7: =IF(M6<=$AH$2,Urliste!M7,"") ->  | N7: =IF(N6<=$AH$2,Urliste!N7,"") ->  | O7: =IF(O6<=$AH$2,Urliste!O7,"") ->  | P7: =IF(P6<=$AH$2,Urliste!P7,"") ->  | Q7: =IF(Q6<=$AH$2,Urliste!Q7,"") ->  | R7: =IF(R6<=$AH$2,Urliste!R7,"") ->  | S7: =IF(S6<=$AH$2,Urliste!S7,"") ->  | T7: =IF(T6<=$AH$2,Urliste!T7,"") ->  | U7: =IF(U6<=$AH$2,Urliste!U7,"") ->  | V7: =IF(V6<=$AH$2,Urliste!V7,"") ->  | W7: =IF(W6<=$AH$2,Urliste!W7,"") ->  | X7: =IF(X6<=$AH$2,Urliste!X7,"") ->  | Y7: =IF(Y6<=$AH$2,Urliste!Y7,"") ->  | Z7: =IF(Z6<=$AH$2,Urliste!Z7,"") ->  | AA7: =IF(AA6<=$AH$2,Urliste!AA7,"") ->  | AB7: =IF(AB6<=$AH$2,Urliste!AB7,"") ->  | AC7: =IF(AC6<=$AH$2,Urliste!AC7,"") ->  | AD7: =IF(AD6<=$AH$2,Urliste!AD7,"") ->  | AE7: =IF(AE6<=$AH$2,Urliste!AE7,"") ->  | AF7: =IF(AF6<=$AH$2,Urliste!AF7,"") ->  | AG7: =IF(AG6<=$AH$2,Urliste!AG7,"") -> 
B10: Häufigkeitstabelle:
D11: =D13*D12 -> 0 | F11: =F13*F12 -> 0 | H11: =H13*H12 -> 26 | J11: =J13*J12 -> 12 | L11: =L13*L12 -> 0 | N11: =N13*N12 -> 10 | P11: =P13*P12 -> 0 | R11: =R13*R12 -> 16 | T11: =T13*T12 -> 7 | V11: =V13*V12 -> 0 | X11: =X13*X12 -> 0 | Z11: =Z13*Z12 -> 0 | AB11: =AB13*AB12 -> 0 | AD11: =AD13*AD12 -> 2 | AF11: =AF13*AF12 -> 0 | AH11: =AH13*AH12 -> 0
B12: Notenpunkte | D12: 15 | F12: 14 | H12: 13 | J12: 12 | L12: 11 | N12: 10 | P12: 9 | R12: 8 | T12: 7 | V12: 6 | X12: 5 | Z12: 4 | AB12: 3 | AD12: 2 | AF12: 1 | AH12: 0 | AK12: Summe
B13: absolute Häufigkeit | D13: =COUNTIF($D$7:$AG$7,D12) -> 0 | F13: =COUNTIF($D$7:$AG$7,F12) -> 0 | H13: =COUNTIF($D$7:$AG$7,H12) -> 2 | J13: =COUNTIF($D$7:$AG$7,J12) -> 1 | L13: =COUNTIF($D$7:$AG$7,L12) -> 0 | N13: =COUNTIF($D$7:$AG$7,N12) -> 1 | P13: =COUNTIF($D$7:$AG$7,P12) -> 0 | R13: =COUNTIF($D$7:$AG$7,R12) -> 2 | T13: =COUNTIF($D$7:$AG$7,T12) -> 1 | V13: =COUNTIF($D$7:$AG$7,V12) -> 0 | X13: =COUNTIF($D$7:$AG$7,X12) -> 0 | Z13: =COUNTIF($D$7:$AG$7,Z12) -> 0 | AB13: =COUNTIF($D$7:$AG$7,AB12) -> 0 | AD13: =COUNTIF($D$7:$AG$7,AD12) -> 1 | AF13: =COUNTIF($D$7:$AG$7,AF12) -> 0 | AH13: =COUNTIF($D$7:$AG$7,AH12) -> 0 | AK13: =SUM(D13:AI13) -> 8
D14: =IF(D13>0,CONCATENATE(" + ",D13," ∙ ",D12),"") ->  | F14: =IF(F13>0,CONCATENATE(" + ",F13," ∙ ",F12),"") ->  | H14: =IF(H13>0,CONCATENATE(" + ",H13," ∙ ",H12),"") -> + 2 ∙ 13 | J14: =IF(J13>0,CONCATENATE(" + ",J13," ∙ ",J12),"") -> + 1 ∙ 12 | L14: =IF(L13>0,CONCATENATE(" + ",L13," ∙ ",L12),"") ->  | N14: =IF(N13>0,CONCATENATE(" + ",N13," ∙ ",N12),"") -> + 1 ∙ 10 | P14: =IF(P13>0,CONCATENATE(" + ",P13," ∙ ",P12),"") ->  | R14: =IF(R13>0,CONCATENATE(" + ",R13," ∙ ",R12),"") -> + 2 ∙ 8 | T14: =IF(T13>0,CONCATENATE(" + ",T13," ∙ ",T12),"") -> + 1 ∙ 7 | V14: =IF(V13>0,CONCATENATE(" + ",V13," ∙ ",V12),"") ->  | X14: =IF(X13>0,CONCATENATE(" + ",X13," ∙ ",X12),"") ->  | Z14: =IF(Z13>0,CONCATENATE(" + ",Z13," ∙ ",Z12),"") ->  | AB14: =IF(AB13>0,CONCATENATE(" + ",AB13," ∙ ",AB12),"") ->  | AD14: =IF(AD13>0,CONCATENATE(" + ",AD13," ∙ ",AD12),"") -> + 1 ∙ 2 | AF14: =IF(AF13>0,CONCATENATE(" + ",AF13," ∙ ",AF12),"") ->  | AH14: =IF(AH13>0,CONCATENATE(" + ",AH13," ∙ ",AH12),"") -> 
B15: relative Häufigkeit | D15: =ROUND(D13/$AH$2,3) -> 0 | F15: =ROUND(F13/$AH$2,3) -> 0 | H15: =ROUND(H13/$AH$2,3) -> 0.25 | J15: =ROUND(J13/$AH$2,3) -> 0.125 | L15: =ROUND(L13/$AH$2,3) -> 0 | N15: =ROUND(N13/$AH$2,3) -> 0.125 | P15: =ROUND(P13/$AH$2,3) -> 0 | R15: =ROUND(R13/$AH$2,3) -> 0.25 | T15: =ROUND(T13/$AH$2,3) -> 0.125 | V15: =ROUND(V13/$AH$2,3) -> 0 | X15: =ROUND(X13/$AH$2,3) -> 0 | Z15: =ROUND(Z13/$AH$2,3) -> 0 | AB15: =ROUND(AB13/$AH$2,3) -> 0 | AD15: =ROUND(AD13/$AH$2,3) -> 0.125 | AF15: =ROUND(AF13/$AH$2,3) -> 0 | AH15: =ROUND(AH13/$AH$2,3) -> 0 | AK15: =SUM(D15:AI15) -> 1
D16: =ROUND(D15,3) -> 0 | F16: =ROUND(F15,3) -> 0 | H16: =ROUND(H15,3) -> 0.25 | J16: =ROUND(J15,3) -> 0.125 | L16: =ROUND(L15,3) -> 0 | N16: =ROUND(N15,3) -> 0.125 | P16: =ROUND(P15,3) -> 0 | R16: =ROUND(R15,3) -> 0.25 | T16: =ROUND(T15,3) -> 0.125 | V16: =ROUND(V15,3) -> 0 | X16: =ROUND(X15,3) -> 0 | Z16: =ROUND(Z15,3) -> 0 | AB16: =ROUND(AB15,3) -> 0 | AD16: =ROUND(AD15,3) -> 0.125 | AF16: =ROUND(AF15,3) -> 0 | AH16: =ROUND(AH15,3) -> 0
D17: =D15*D12 -> 0 | F17: =F15*F12 -> 0 | H17: =H15*H12 -> 3.25 | J17: =J15*J12 -> 1.5 | L17: =L15*L12 -> 0 | N17: =N15*N12 -> 1.25 | P17: =P15*P12 -> 0 | R17: =R15*R12 -> 2 | T17: =T15*T12 -> 0.875 | V17: =V15*V12 -> 0 | X17: =X15*X12 -> 0 | Z17: =Z15*Z12 -> 0 | AB17: =AB15*AB12 -> 0 | AD17: =AD15*AD12 -> 0.25 | AF17: =AF15*AF12 -> 0 | AH17: =AH15*AH12 -> 0
C21: =CONCATENATE(D13," ∙ ",D12," + ",F13," ∙ ",F12," + ",H13," ∙ ",H12," + ",J13," ∙ ",J12," + ",L13," ∙ ",L12," + ",N13," ∙ ",N12," + ",P13," ∙ ",P12," + ",R13," ∙ ",R12," + ",T13," ∙ ",T12," + ",V13," ∙ ",V12," + ",X13," ∙ ",X12," + ",Z13," ∙ ",Z12," + ",AB13," ∙ ",AB12," + ",AD13," ∙ ",AD12," + ",AF13," ∙ ",AF12," + ",AH13," ∙ ",AH12) -> 0 ∙ 15 + 0 ∙ 14 + 2 ∙ 13 + 1 ∙ 12 + 0 ∙ 11 + 1 ∙ 10 + 0 ∙ 9 + 2 ∙ 8 + 1 ∙ 7 + 0 ∙ 6 + 0 ∙ 5 + 0 ∙ 4 + 0 ∙ 3 + 1 ∙ 2 + 0 ∙ 1 + 0 ∙ 0 | AJ21: ≅ | AK21: =ROUND(SUM(D11:AI11)/$AH$2,3) -> 9.125
C22: =$AH$2 -> 8
C24: =CONCATENATE(D14,F14,H14,J14,L14,N14,P14,R14,T14,V14,X14,Z14,AB14,AD14,AF14,AH14) -> + 2 ∙ 13 + 1 ∙ 12 + 1 ∙ 10 + 2 ∙ 8 + 1 ∙ 7 + 1 ∙ 2 | AJ24: ≅ | AK24: =ROUND(SUM(D11:AI11)/$AH$2,3) -> 9.125
C25: =C22 -> 8
C29: =CONCATENATE(D16," ∙ ",D12," + ",F16," ∙ ",F12," + ",H16," ∙ ",H12," + ",J16," ∙ ",J12," + ",L16," ∙ ",L12," + ",N16," ∙ ",N12," + ",P16," ∙ ",P12," + ",R16," ∙ ",R12," + ",T16," ∙ ",T12," + ",V16," ∙ ",V12," + ",X16," ∙ ",X12," + ",Z16," ∙ ",Z12," + ",AB16," ∙ ",AB12," + ",AD16," ∙ ",AD12," + ",AF16," ∙ ",AF12," + ",AH16," ∙ ",AH12," ≅ ",AK24) -> 0 ∙ 15 + 0 ∙ 14 + 0,25 ∙ 13 + 0,125 ∙ 12 + 0 ∙ 11 + 0,125 ∙ 10 + 0 ∙ 9 + 0,25 ∙ 8 + 0,125 ∙ 7 + 0 ∙ 6 + 0 ∙ 5 + 0 ∙ 4 + 0 ∙ 3 + 0,125 ∙ 2 + 0 ∙ 1 + 0 ∙ 0 ≅ 9,125

Sheet Modalwert
B2: Beispiel: Korrektur Matheklausur in der Oberstufe | AA2: ( | AB2: Anzahl der Klausuren: | AH2: =Urliste!P24 -> 8 | AI2: ) | AR2: FALSE
B4: Urliste:
B6: Nummer der Klausur | D6: 1 | E6: 2 | F6: 3 | G6: 4 | H6: 5 | I6: 6 | J6: 7 | K6: 8 | L6: 9 | M6: 10 | N6: 11 | O6: 12 | P6: 13 | Q6: 14 | R6: 15 | S6: 16 | T6: 17 | U6: 18 | V6: 19 | W6: 20 | X6: 21 | Y6: 22 | Z6: 23 | AA6: 24 | AB6: 25 | AC6: 26 | AD6: 27 | AE6: 28 | AF6: 29 | AG6: 30
B7: Notenpunkte | D7: =IF(D6<=$AH$2,Urliste!D7,"") -> 12 | E7: =IF(E6<=$AH$2,Urliste!E7,"") -> 13 | F7: =IF(F6<=$AH$2,Urliste!F7,"") -> 8 | G7: =IF(G6<=$AH$2,Urliste!G7,"") -> 7 | H7: =IF(H6<=$AH$2,Urliste!H7,"") -> 8 | I7: =IF(I6<=$AH$2,Urliste!I7,"") -> 10 | J7: =IF(J6<=$AH$2,Urliste!J7,"") -> 2 | K7: =IF(K6<=$AH$2,Urliste!K7,"") -> 13 | L7: =IF(L6<=$AH$2,Urliste!L7,"") ->  | M7: =IF(M6<=$AH$2,Urliste!M7,"") ->  | N7: =IF(N6<=$AH$2,Urliste!N7,"") ->  | O7: =IF(O6<=$AH$2,Urliste!O7,"") ->  | P7: =IF(P6<=$AH$2,Urliste!P7,"") ->  | Q7: =IF(Q6<=$AH$2,Urliste!Q7,"") ->  | R7: =IF(R6<=$AH$2,Urliste!R7,"") ->  | S7: =IF(S6<=$AH$2,Urliste!S7,"") ->  | T7: =IF(T6<=$AH$2,Urliste!T7,"") ->  | U7: =IF(U6<=$AH$2,Urliste!U7,"") ->  | V7: =IF(V6<=$AH$2,Urliste!V7,"") ->  | W7: =IF(W6<=$AH$2,Urliste!W7,"") ->  | X7: =IF(X6<=$AH$2,Urliste!X7,"") ->  | Y7: =IF(Y6<=$AH$2,Urliste!Y7,"") ->  | Z7: =IF(Z6<=$AH$2,Urliste!Z7,"") ->  | AA7: =IF(AA6<=$AH$2,Urliste!AA7,"") ->  | AB7: =IF(AB6<=$AH$2,Urliste!AB7,"") ->  | AC7: =IF(AC6<=$AH$2,Urliste!AC7,"") ->  | AD7: =IF(AD6<=$AH$2,Urliste!AD7,"") ->  | AE7: =IF(AE6<=$AH$2,Urliste!AE7,"") ->  | AF7: =IF(AF6<=$AH$2,Urliste!AF7,"") ->  | AG7: =IF(AG6<=$AH$2,Urliste!AG7,"") -> 
B9: Häufigkeitstabelle:
D10: =D12*D11 -> 0 | F10: =F12*F11 -> 0 | H10: =H12*H11 -> 26 | J10: =J12*J11 -> 12 | L10: =L12*L11 -> 0 | N10: =N12*N11 -> 10 | P10: =P12*P11 -> 0 | R10: =R12*R11 -> 16 | T10: =T12*T11 -> 7 | V10: =V12*V11 -> 0 | X10: =X12*X11 -> 0 | Z10: =Z12*Z11 -> 0 | AB10: =AB12*AB11 -> 0 | AD10: =AD12*AD11 -> 2 | AF10: =AF12*AF11 -> 0 | AH10: =AH12*AH11 -> 0
B11: Notenpunkte | D11: 15 | F11: 14 | H11: 13 | J11: 12 | L11: 11 | N11: 10 | P11: 9 | R11: 8 | T11: 7 | V11: 6 | X11: 5 | Z11: 4 | AB11: 3 | AD11: 2 | AF11: 1 | AH11: 0 | AK11: Summe
B12: absolute Häufigkeit | D12: =IF($AR$2=FALSE,COUNTIF($D$7:$AG$7,D11),"") -> 0 | F12: =IF($AR$2=FALSE,COUNTIF($D$7:$AG$7,F11),"") -> 0 | H12: =IF($AR$2=FALSE,COUNTIF($D$7:$AG$7,H11),"") -> 2 | J12: =IF($AR$2=FALSE,COUNTIF($D$7:$AG$7,J11),"") -> 1 | L12: =IF($AR$2=FALSE,COUNTIF($D$7:$AG$7,L11),"") -> 0 | N12: =IF($AR$2=FALSE,COUNTIF($D$7:$AG$7,N11),"") -> 1 | P12: =IF($AR$2=FALSE,COUNTIF($D$7:$AG$7,P11),"") -> 0 | R12: =IF($AR$2=FALSE,COUNTIF($D$7:$AG$7,R11),"") -> 2 | T12: =IF($AR$2=FALSE,COUNTIF($D$7:$AG$7,T11),"") -> 1 | V12: =IF($AR$2=FALSE,COUNTIF($D$7:$AG$7,V11),"") -> 0 | X12: =IF($AR$2=FALSE,COUNTIF($D$7:$AG$7,X11),"") -> 0 | Z12: =IF($AR$2=FALSE,COUNTIF($D$7:$AG$7,Z11),"") -> 0 | AB12: =IF($AR$2=FALSE,COUNTIF($D$7:$AG$7,AB11),"") -> 0 | AD12: =IF($AR$2=FALSE,COUNTIF($D$7:$AG$7,AD11),"") -> 1 | AF12: =IF($AR$2=FALSE,COUNTIF($D$7:$AG$7,AF11),"") -> 0 | AH12: =IF($AR$2=FALSE,COUNTIF($D$7:$AG$7,AH11),"") -> 0 | AK12: =SUM(D12:AI12) -> 8
B13: relative Häufigkeit | D13: =IF($AR$2=FALSE,ROUND(D12/$AH$2,3),"") -> 0 | F13: =IF($AR$2=FALSE,ROUND(F12/$AH$2,3),"") -> 0 | H13: =IF($AR$2=FALSE,ROUND(H12/$AH$2,3),"") -> 0.25 | J13: =IF($AR$2=FALSE,ROUND(J12/$AH$2,3),"") -> 0.125 | L13: =IF($AR$2=FALSE,ROUND(L12/$AH$2,3),"") -> 0 | N13: =IF($AR$2=FALSE,ROUND(N12/$AH$2,3),"") -> 0.125 | P13: =IF($AR$2=FALSE,ROUND(P12/$AH$2,3),"") -> 0 | R13: =IF($AR$2=FALSE,ROUND(R12/$AH$2,3),"") -> 0.25 | T13: =IF($AR$2=FALSE,ROUND(T12/$AH$2,3),"") -> 0.125 | V13: =IF($AR$2=FALSE,ROUND(V12/$AH$2,3),"") -> 0 | X13: =IF($AR$2=FALSE,ROUND(X12/$AH$2,3),"") -> 0 | Z13: =IF($AR$2=FALSE,ROUND(Z12/$AH$2,3),"") -> 0 | AB13: =IF($AR$2=FALSE,ROUND(AB12/$AH$2,3),"") -> 0 | AD13: =IF($AR$2=FALSE,ROUND(AD12/$AH$2,3),"") -> 0.125 | AF13: =IF($AR$2=FALSE,ROUND(AF12/$AH$2,3),"") -> 0 | AH13: =IF($AR$2=FALSE,ROUND(AH12/$AH$2,3),"") -> 0 | AK13: =SUM(D13:AI13) -> 1
D14: =ROUND(D13,3) -> 0 | F14: =ROUND(F13,3) -> 0 | H14: =ROUND(H13,3) -> 0.25 | J14: =ROUND(J13,3) -> 0.125 | L14: =ROUND(L13,3) -> 0 | N14: =ROUND(N13,3) -> 0.125 | P14: =ROUND(P13,3) -> 0 | R14: =ROUND(R13,3) -> 0.25 | T14: =ROUND(T13,3) -> 0.125 | V14: =ROUND(V13,3) -> 0 | X14: =ROUND(X13,3) -> 0 | Z14: =ROUND(Z13,3) -> 0 | AB14: =ROUND(AB13,3) -> 0 | AD14: =ROUND(AD13,3) -> 0.125 | AF14: =ROUND(AF13,3) -> 0 | AH14: =ROUND(AH13,3) -> 0
D15: =D13*D11 -> 0 | F15: =F13*F11 -> 0 | H15: =H13*H11 -> 3.25 | J15: =J13*J11 -> 1.5 | L15: =L13*L11 -> 0 | N15: =N13*N11 -> 1.25 | P15: =P13*P11 -> 0 | R15: =R13*R11 -> 2 | T15: =T13*T11 -> 0.875 | V15: =V13*V11 -> 0 | X15: =X13*X11 -> 0 | Z15: =Z13*Z11 -> 0 | AB15: =AB13*AB11 -> 0 | AD15: =AD13*AD11 -> 0.25 | AF15: =AF13*AF11 -> 0 | AH15: =AH13*AH11 -> 0
B28: Modalwert(e): | D28: =_xlfn.MODE.MULT(D7:AG7) -> 13 | E28: =_xlfn.IFNA(D28,40) -> 13 | H28: (Werte mit der größten relativen Häufigkeit)
D29: 8 | E29: =_xlfn.IFNA(D29,40) -> 8 | F29: =IF(OR(E29=40,E29=$D$28),1,0) -> 0
E30: 40 | F30: =IF(OR(E30=40,E30=$D$28),1,0) -> 1
E31: 40 | F31: 1
E32: 40 | F32: 1
E33: 40 | F33: 1
E34: 40 | F34: 1
E35: 40 | F35: 1
E36: 40 | F36: 1
E37: 40 | F37: 1
E38: 40 | F38: 1
E39: 40 | F39: 1
E40: 40 | F40: 1
E41: 40 | F41: 1
E42: 40 | F42: 1
E43: 40 | F43: 1
E44: 40 | F44: 1
E45: 40 | F45: 1
E46: 40 | F46: 1
E47: 40 | F47: 1
E48: 40 | F48: 1
E49: 40 | F49: 1
E50: 40 | F50: 1
E51: 40 | F51: 1
E52: 40 | F52: 1
E53: 40 | F53: 1
E54: 40 | F54: 1
E55: 40 | F55: 1

Sheet Median
B2: Beispiel: Korrektur Matheklausur in der Oberstufe | AA2: ( | AB2: Anzahl der Klausuren: | AH2: =Urliste!P24 -> 8 | AI2: ) | AP2: FALSE
B4: Urliste:
B6: Nummer der Klausur | D6: 1 | E6: 2 | F6: 3 | G6: 4 | H6: 5 | I6: 6 | J6: 7 | K6: 8 | L6: 9 | M6: 10 | N6: 11 | O6: 12 | P6: 13 | Q6: 14 | R6: 15 | S6: 16 | T6: 17 | U6: 18 | V6: 19 | W6: 20 | X6: 21 | Y6: 22 | Z6: 23 | AA6: 24 | AB6: 25 | AC6: 26 | AD6: 27 | AE6: 28 | AF6: 29 | AG6: 30
B7: Notenpunkte | D7: =IF(D6<=$AH$2,Urliste!D7,"") -> 12 | E7: =IF(E6<=$AH$2,Urliste!E7,"") -> 13 | F7: =IF(F6<=$AH$2,Urliste!F7,"") -> 8 | G7: =IF(G6<=$AH$2,Urliste!G7,"") -> 7 | H7: =IF(H6<=$AH$2,Urliste!H7,"") -> 8 | I7: =IF(I6<=$AH$2,Urliste!I7,"") -> 10 | J7: =IF(J6<=$AH$2,Urliste!J7,"") -> 2 | K7: =IF(K6<=$AH$2,Urliste!K7,"") -> 13 | L7: =IF(L6<=$AH$2,Urliste!L7,"") ->  | M7: =IF(M6<=$AH$2,Urliste!M7,"") ->  | N7: =IF(N6<=$AH$2,Urliste!N7,"") ->  | O7: =IF(O6<=$AH$2,Urliste!O7,"") ->  | P7: =IF(P6<=$AH$2,Urliste!P7,"") ->  | Q7: =IF(Q6<=$AH$2,Urliste!Q7,"") ->  | R7: =IF(R6<=$AH$2,Urliste!R7,"") ->  | S7: =IF(S6<=$AH$2,Urliste!S7,"") ->  | T7: =IF(T6<=$AH$2,Urliste!T7,"") ->  | U7: =IF(U6<=$AH$2,Urliste!U7,"") ->  | V7: =IF(V6<=$AH$2,Urliste!V7,"") ->  | W7: =IF(W6<=$AH$2,Urliste!W7,"") ->  | X7: =IF(X6<=$AH$2,Urliste!X7,"") ->  | Y7: =IF(Y6<=$AH$2,Urliste!Y7,"") ->  | Z7: =IF(Z6<=$AH$2,Urliste!Z7,"") ->  | AA7: =IF(AA6<=$AH$2,Urliste!AA7,"") ->  | AB7: =IF(AB6<=$AH$2,Urliste!AB7,"") ->  | AC7: =IF(AC6<=$AH$2,Urliste!AC7,"") ->  | AD7: =IF(AD6<=$AH$2,Urliste!AD7,"") ->  | AE7: =IF(AE6<=$AH$2,Urliste!AE7,"") ->  | AF7: =IF(AF6<=$AH$2,Urliste!AF7,"") ->  | AG7: =IF(AG6<=$AH$2,Urliste!AG7,"") -> 
B9: Der Große nach geordnet:
B11: Nummer der Klausur | D11: 1 | E11: 2 | F11: 3 | G11: 4 | H11: 5 | I11: 6 | J11: 7 | K11: 8 | L11: 9 | M11: 10 | N11: 11 | O11: 12 | P11: 13 | Q11: 14 | R11: 15 | S11: 16 | T11: 17 | U11: 18 | V11: 19 | W11: 20 | X11: 21 | Y11: 22 | Z11: 23 | AA11: 24 | AB11: 25 | AC11: 26 | AD11: 27 | AE11: 28 | AF11: 29 | AG11: 30
B12: Notenpunkte | D12: =IF(D11<=$AH$2,SMALL($D$7:$AG$7,D11),"") -> 2 | E12: =IF(E11<=$AH$2,SMALL($D$7:$AG$7,E11),"") -> 7 | F12: 8 | G12: 8 | H12: 10 | I12: 12 | J12: 13 | K12: 13
B14: Median (Lage): | D14: =IF(D11=$H$22,"x","") ->  | E14: =IF(E11=$H$22,"x","") -> 
B15: Untermedian (Lage): | D15: =IF(D11=$H$24,"x","") ->  | E15: =IF(E11=$H$24,"x","") ->  | G15: x
B16: Obermedian (Lage): | D16: =IF(D11=$H$25,"x","") ->  | E16: =IF(E11=$H$25,"x","") ->  | H16: x
B17: untere Hälfte: | D17: =IF(AND($H$21=FALSE,D11<$H$22),"x",IF(AND($H$23=FALSE,D11<=$H$24),"x","")) -> x | E17: =IF(AND($H$21=FALSE,E11<$H$22),"x",IF(AND($H$23=FALSE,E11<=$H$24),"x","")) -> x | F17: x | G17: x
B18: obere Hälfte: | D18: =IF(D11<=$H$20,IF(AND($H$21=FALSE,D11>$H$22),"x",IF(AND($H$23=FALSE,D11>$H$24),"x","")),"") ->  | E18: =IF(E11<=$H$20,IF(AND($H$21=FALSE,E11>$H$22),"x",IF(AND($H$23=FALSE,E11>$H$24),"x","")),"") ->  | H18: x | I18: x | J18: x | K18: x
B20: Anzahl: | H20: =AH2 -> 8
B21: gerade: | H21: =ISEVEN(H20) -> TRUE
C22: Nummer Median: | H22: =IF(H21=FALSE,ROUNDUP(H20/2,0),"") -> 
B23: ungerade: | H23: =ISODD(H20) -> FALSE
C24: Nummer Untermedian: | H24: =IF(H23=FALSE,ROUNDDOWN(H20/2,0),"") -> 4
C25: Nummer Obermedian: | H25: =IF(H23=FALSE,H20/2+1,"") -> 5
B27: untere Hälfte:
B29: Nummer der Klausur | D29: =IF(D30="","",D6) -> 1 | E29: 2 | F29: 3 | G29: 4
B30: Notenpunkte | D30: =IF(D17="x",IF(D6<=$AH$2,SMALL($D$7:$AG$7,D6),""),"") -> 2 | E30: 7 | F30: 8 | G30: 8
B32: obere Hälfte:
B34: Nummer der Klausur | D34: =IF(D35="","",D6) ->  | H34: 5 | I34: 6 | J34: 7 | K34: 8
B35: Notenpunkte | D35: =IF(D18="x",IF(D6<=$AH$2,SMALL($D$7:$AG$7,D6),""),"") ->  | H35: 10 | I35: 12 | J35: 13 | K35: 13
B37: Median x1/2 : | D37: =QUARTILE($D$12:$AG$12,2) -> 9 | F37: (Wert, der die der Größe nach geordnete Reihe der Daten halbiert.)
B38: Viertelwert x1/4 : | D38: =QUARTILE($D$30:$AG$30,2) -> 7.5 | F38: (Median der unteren Hälfte) | R38: 25%-Quartil: | V38: =QUARTILE($D$12:$AG$12,1) -> 7.75
B39: Viertelwert x3/4 : | D39: =QUARTILE($D$35:$AG$35,2) -> 12.5 | F39: (Median der oberen Hälfte) | R39: 75%-Quartil: | V39: =QUARTILE($D$12:$AG$12,3) -> 12.25

Sheet Spann- u. Halbweite
B2: Beispiel: Korrektur Matheklausur in der Oberstufe | AA2: ( | AB2: Anzahl der Klausuren: | AH2: =Urliste!P24 -> 8 | AI2: ) | AP2: FALSE
B4: Urliste:
B6: Nummer der Klausur | D6: 1 | E6: 2 | F6: 3 | G6: 4 | H6: 5 | I6: 6 | J6: 7 | K6: 8 | L6: 9 | M6: 10 | N6: 11 | O6: 12 | P6: 13 | Q6: 14 | R6: 15 | S6: 16 | T6: 17 | U6: 18 | V6: 19 | W6: 20 | X6: 21 | Y6: 22 | Z6: 23 | AA6: 24 | AB6: 25 | AC6: 26 | AD6: 27 | AE6: 28 | AF6: 29 | AG6: 30
B7: Notenpunkte | D7: =IF(D6<=$AH$2,Urliste!D7,"") -> 12 | E7: =IF(E6<=$AH$2,Urliste!E7,"") -> 13 | F7: =IF(F6<=$AH$2,Urliste!F7,"") -> 8 | G7: =IF(G6<=$AH$2,Urliste!G7,"") -> 7 | H7: =IF(H6<=$AH$2,Urliste!H7,"") -> 8 | I7: =IF(I6<=$AH$2,Urliste!I7,"") -> 10 | J7: =IF(J6<=$AH$2,Urliste!J7,"") -> 2 | K7: =IF(K6<=$AH$2,Urliste!K7,"") -> 13 | L7: =IF(L6<=$AH$2,Urliste!L7,"") ->  | M7: =IF(M6<=$AH$2,Urliste!M7,"") ->  | N7: =IF(N6<=$AH$2,Urliste!N7,"") ->  | O7: =IF(O6<=$AH$2,Urliste!O7,"") ->  | P7: =IF(P6<=$AH$2,Urliste!P7,"") ->  | Q7: =IF(Q6<=$AH$2,Urliste!Q7,"") ->  | R7: =IF(R6<=$AH$2,Urliste!R7,"") ->  | S7: =IF(S6<=$AH$2,Urliste!S7,"") ->  | T7: =IF(T6<=$AH$2,Urliste!T7,"") ->  | U7: =IF(U6<=$AH$2,Urliste!U7,"") ->  | V7: =IF(V6<=$AH$2,Urliste!V7,"") ->  | W7: =IF(W6<=$AH$2,Urliste!W7,"") ->  | X7: =IF(X6<=$AH$2,Urliste!X7,"") ->  | Y7: =IF(Y6<=$AH$2,Urliste!Y7,"") ->  | Z7: =IF(Z6<=$AH$2,Urliste!Z7,"") ->  | AA7: =IF(AA6<=$AH$2,Urliste!AA7,"") ->  | AB7: =IF(AB6<=$AH$2,Urliste!AB7,"") ->  | AC7: =IF(AC6<=$AH$2,Urliste!AC7,"") ->  | AD7: =IF(AD6<=$AH$2,Urliste!AD7,"") ->  | AE7: =IF(AE6<=$AH$2,Urliste!AE7,"") ->  | AF7: =IF(AF6<=$AH$2,Urliste!AF7,"") ->  | AG7: =IF(AG6<=$AH$2,Urliste!AG7,"") -> 
B9: Der Große nach geordnet:
B11: Nummer der Klausur | D11: 1 | E11: 2 | F11: 3 | G11: 4 | H11: 5 | I11: 6 | J11: 7 | K11: 8 | L11: 9 | M11: 10 | N11: 11 | O11: 12 | P11: 13 | Q11: 14 | R11: 15 | S11: 16 | T11: 17 | U11: 18 | V11: 19 | W11: 20 | X11: 21 | Y11: 22 | Z11: 23 | AA11: 24 | AB11: 25 | AC11: 26 | AD11: 27 | AE11: 28 | AF11: 29 | AG11: 30
B12: Notenpunkte | D12: =IF(D11<=$AH$2,SMALL($D$7:$AG$7,D11),"") -> 2 | E12: =IF(E11<=$AH$2,SMALL($D$7:$AG$7,E11),"") -> 7 | F12: 8 | G12: 8 | H12: 10 | I12: 12 | J12: 13 | K12: 13
B14: Median (Lage): | D14: =IF(D11=$H$22,"x","") ->  | E14: =IF(E11=$H$22,"x","") -> 
B15: Untermedian (Lage): | D15: =IF(D11=$H$24,"x","") ->  | E15: =IF(E11=$H$24,"x","") ->  | G15: x
B16: Obermedian (Lage): | D16: =IF(D11=$H$25,"x","") ->  | E16: =IF(E11=$H$25,"x","") ->  | H16: x
B17: untere Hälfte: | D17: =IF(AND($H$21=FALSE,D11<$H$22),"x",IF(AND($H$23=FALSE,D11<=$H$24),"x","")) -> x | E17: =IF(AND($H$21=FALSE,E11<$H$22),"x",IF(AND($H$23=FALSE,E11<=$H$24),"x","")) -> x | F17: x | G17: x
B18: obere Hälfte: | D18: =IF(D11<=$H$20,IF(AND($H$21=FALSE,D11>$H$22),"x",IF(AND($H$23=FALSE,D11>$H$24),"x","")),"") ->  | E18: =IF(E11<=$H$20,IF(AND($H$21=FALSE,E11>$H$22),"x",IF(AND($H$23=FALSE,E11>$H$24),"x","")),"") ->  | H18: x | I18: x | J18: x | K18: x
B20: Anzahl: | H20: =AH2 -> 8
B21: gerade: | H21: =ISEVEN(H20) -> TRUE
C22: Nummer Median: | H22: =IF(H21=FALSE,ROUNDUP(H20/2,0),"") -> 
B23: ungerade: | H23: =ISODD(H20) -> FALSE
C24: Nummer Untermedian: | H24: =IF(H23=FALSE,ROUNDDOWN(H20/2,0),"") -> 4
C25: Nummer Obermedian: | H25: =IF(H23=FALSE,H20/2+1,"") -> 5
B27: untere Hälfte:
B29: Nummer der Klausur | D29: =IF(D30="","",D6) -> 1 | E29: 2 | F29: 3 | G29: 4
B30: Notenpunkte | D30: =IF(D17="x",IF(D6<=$AH$2,SMALL($D$7:$AG$7,D6),""),"") -> 2 | E30: 7 | F30: 8 | G30: 8
B32: obere Hälfte:
B34: Nummer der Klausur | D34: =IF(D35="","",D6) ->  | H34: 5 | I34: 6 | J34: 7 | K34: 8
B35: Notenpunkte | D35: =IF(D18="x",IF(D6<=$AH$2,SMALL($D$7:$AG$7,D6),""),"") ->  | H35: 10 | I35: 12 | J35: 13 | K35: 13
B37: Median x1/2 : | D37: =QUARTILE($D$12:$AG$12,2) -> 9 | F37: (Wert, der die der Größe nach geordnete Reihe der Daten halbiert.)
B38: Viertelwert x1/4 : | D38: =QUARTILE($D$30:$AG$30,2) -> 7.5 | F38: (Median der unteren Hälfte)
B39: Viertelwert x3/4 : | D39: =QUARTILE($D$35:$AG$35,2) -> 12.5 | F39: (Median der oberen Hälfte)
B41: Minimalwert xmin : | D41: =MIN(D12:AG12) -> 2
B42: Maximalwert xmax : | D42: =MAX(D12:AG12) -> 13
B44: Spannweite d: | D44: d = xmax - xmin = | I44: =D42-D41 -> 11
B46: Halbweite H: | D46: H = x3/4 - x1/4 = | I46: =D39-D38 -> 5

Sheet Boxplot(30)
B2: Beispiel: Korrektur Matheklausur in der Oberstufe | AA2: ( | AB2: Anzahl der Klausuren: | AH2: 30 | AI2: ) | AP2: FALSE
B4: Urliste: | AM4: Boxplot
B6: Nummer der Klausur | D6: 1 | E6: 2 | F6: 3 | G6: 4 | H6: 5 | I6: 6 | J6: 7 | K6: 8 | L6: 9 | M6: 10 | N6: 11 | O6: 12 | P6: 13 | Q6: 14 | R6: 15 | S6: 16 | T6: 17 | U6: 18 | V6: 19 | W6: 20 | X6: 21 | Y6: 22 | Z6: 23 | AA6: 24 | AB6: 25 | AC6: 26 | AD6: 27 | AE6: 28 | AF6: 29 | AG6: 30
B7: Notenpunkte | D7: =IF(D6<=$AH$2,Urliste!D7,"") -> 12 | E7: =IF(E6<=$AH$2,Urliste!E7,"") -> 13 | F7: =IF(F6<=$AH$2,Urliste!F7,"") -> 8 | G7: =IF(G6<=$AH$2,Urliste!G7,"") -> 7 | H7: =IF(H6<=$AH$2,Urliste!H7,"") -> 8 | I7: =IF(I6<=$AH$2,Urliste!I7,"") -> 10 | J7: =IF(J6<=$AH$2,Urliste!J7,"") -> 2 | K7: =IF(K6<=$AH$2,Urliste!K7,"") -> 13 | L7: =IF(L6<=$AH$2,Urliste!L7,"") -> 7 | M7: =IF(M6<=$AH$2,Urliste!M7,"") -> 13 | N7: =IF(N6<=$AH$2,Urliste!N7,"") -> 8 | O7: =IF(O6<=$AH$2,Urliste!O7,"") -> 13 | P7: =IF(P6<=$AH$2,Urliste!P7,"") -> 14 | Q7: =IF(Q6<=$AH$2,Urliste!Q7,"") -> 5 | R7: =IF(R6<=$AH$2,Urliste!R7,"") -> 10 | S7: =IF(S6<=$AH$2,Urliste!S7,"") -> 14 | T7: =IF(T6<=$AH$2,Urliste!T7,"") -> 9 | U7: =IF(U6<=$AH$2,Urliste!U7,"") -> 13 | V7: =IF(V6<=$AH$2,Urliste!V7,"") -> 14 | W7: =IF(W6<=$AH$2,Urliste!W7,"") -> 7 | X7: =IF(X6<=$AH$2,Urliste!X7,"") -> 13 | Y7: =IF(Y6<=$AH$2,Urliste!Y7,"") -> 11 | Z7: =IF(Z6<=$AH$2,Urliste!Z7,"") -> 10 | AA7: =IF(AA6<=$AH$2,Urliste!AA7,"") -> 13 | AB7: =IF(AB6<=$AH$2,Urliste!AB7,"") -> 11 | AC7: =IF(AC6<=$AH$2,Urliste!AC7,"") -> 12 | AD7: =IF(AD6<=$AH$2,Urliste!AD7,"") -> 8 | AE7: =IF(AE6<=$AH$2,Urliste!AE7,"") -> 12 | AF7: =IF(AF6<=$AH$2,Urliste!AF7,"") -> 15 | AG7: =IF(AG6<=$AH$2,Urliste!AG7,"") -> 15
D8: =IF($AP$2=FALSE,D7,"") -> 12 | E8: =IF($AP$2=FALSE,E7,"") -> 13 | F8: 8 | G8: 7 | H8: 8 | I8: 10 | J8: 2 | K8: 13 | L8: 7 | M8: 13 | N8: 8 | O8: 13 | P8: 14 | Q8: 5 | R8: 10 | S8: 14 | T8: 9 | U8: 13 | V8: 14 | W8: 7 | X8: 13 | Y8: 11 | Z8: 10 | AA8: 13 | AB8: 11 | AC8: 12 | AD8: 8 | AE8: 12 | AF8: 15 | AG8: 15
B9: Der Große nach geordnet:
B11: Nummer der Klausur | D11: 1 | E11: 2 | F11: 3 | G11: 4 | H11: 5 | I11: 6 | J11: 7 | K11: 8 | L11: 9 | M11: 10 | N11: 11 | O11: 12 | P11: 13 | Q11: 14 | R11: 15 | S11: 16 | T11: 17 | U11: 18 | V11: 19 | W11: 20 | X11: 21 | Y11: 22 | Z11: 23 | AA11: 24 | AB11: 25 | AC11: 26 | AD11: 27 | AE11: 28 | AF11: 29 | AG11: 30
B12: Notenpunkte | D12: =IF(D11<=$AH$2,SMALL($D$7:$AG$7,D11),"") -> 2 | E12: =IF(E11<=$AH$2,SMALL($D$7:$AG$7,E11),"") -> 5 | F12: 7 | G12: 7 | H12: 7 | I12: 8 | J12: 8 | K12: 8 | L12: 8 | M12: 9 | N12: 10 | O12: 10 | P12: 10 | Q12: 11 | R12: 11 | S12: 12 | T12: 12 | U12: 12 | V12: 13 | W12: 13 | X12: 13 | Y12: 13 | Z12: 13 | AA12: 13 | AB12: 13 | AC12: 14 | AD12: 14 | AE12: 14 | AF12: 15 | AG12: 15
B14: Median (Lage): | D14: =IF(D11=$H$22,"x","") ->  | E14: =IF(E11=$H$22,"x","") -> 
B15: Untermedian (Lage): | D15: =IF(D11=$H$24,"x","") ->  | E15: =IF(E11=$H$24,"x","") ->  | R15: x
B16: Obermedian (Lage): | D16: =IF(D11=$H$25,"x","") ->  | E16: =IF(E11=$H$25,"x","") ->  | S16: x
B17: untere Hälfte: | D17: =IF(AND($H$21=FALSE,D11<$H$22),"x",IF(AND($H$23=FALSE,D11<=$H$24),"x","")) -> x | E17: =IF(AND($H$21=FALSE,E11<$H$22),"x",IF(AND($H$23=FALSE,E11<=$H$24),"x","")) -> x | F17: x | G17: x | H17: x | I17: x | J17: x | K17: x | L17: x | M17: x | N17: x | O17: x | P17: x | Q17: x | R17: x
B18: obere Hälfte: | D18: =IF(D11<=$H$20,IF(AND($H$21=FALSE,D11>$H$22),"x",IF(AND($H$23=FALSE,D11>$H$24),"x","")),"") ->  | E18: =IF(E11<=$H$20,IF(AND($H$21=FALSE,E11>$H$22),"x",IF(AND($H$23=FALSE,E11>$H$24),"x","")),"") ->  | S18: x | T18: x | U18: x | V18: x | W18: x | X18: x | Y18: x | Z18: x | AA18: x | AB18: x | AC18: x | AD18: x | AE18: x | AF18: x | AG18: x
B20: Anzahl: | H20: =AH2 -> 30
B21: gerade: | H21: =ISEVEN(H20) -> TRUE
C22: Nummer Median: | H22: =IF(H21=FALSE,ROUNDUP(H20/2,0),"") -> 
B23: ungerade: | H23: =ISODD(H20) -> FALSE
C24: Nummer Untermedian: | H24: =IF(H23=FALSE,ROUNDDOWN(H20/2,0),"") -> 15
C25: Nummer Obermedian: | H25: =IF(H23=FALSE,H20/2+1,"") -> 16
B27: untere Hälfte:
B29: Nummer der Klausur | D29: =IF(D30="","",D6) -> 1 | E29: 2 | F29: 3 | G29: 4 | H29: 5 | I29: 6 | J29: 7 | K29: 8 | L29: 9 | M29: 10 | N29: 11 | O29: 12 | P29: 13 | Q29: 14 | R29: 15
B30: Notenpunkte | D30: =IF(D17="x",IF(D6<=$AH$2,SMALL($D$7:$AG$7,D6),""),"") -> 2 | E30: 5 | F30: 7 | G30: 7 | H30: 7 | I30: 8 | J30: 8 | K30: 8 | L30: 8 | M30: 9 | N30: 10 | O30: 10 | P30: 10 | Q30: 11 | R30: 11
B32: obere Hälfte:
B34: Nummer der Klausur | D34: =IF(D35="","",D6) ->  | S34: 16 | T34: 17 | U34: 18 | V34: 19 | W34: 20 | X34: 21 | Y34: 22 | Z34: 23 | AA34: 24 | AB34: 25 | AC34: 26 | AD34: 27 | AE34: 28 | AF34: 29 | AG34: 30
B35: Notenpunkte | D35: =IF(D18="x",IF(D6<=$AH$2,SMALL($D$7:$AG$7,D6),""),"") ->  | S35: 12 | T35: 12 | U35: 12 | V35: 13 | W35: 13 | X35: 13 | Y35: 13 | Z35: 13 | AA35: 13 | AB35: 13 | AC35: 14 | AD35: 14 | AE35: 14 | AF35: 15 | AG35: 15
B37: Median x1/2 : | D37: =QUARTILE($D$12:$AG$12,2) -> 11.5 | F37: (Wert, der die der Größe nach geordnete Reihe der Daten halbiert.)
B38: Viertelwert x1/4 : | D38: =QUARTILE($D$30:$AG$30,2) -> 8 | F38: (Median der unteren Hälfte)
B39: Viertelwert x3/4 : | D39: =QUARTILE($D$35:$AG$35,2) -> 13 | F39: (Median der oberen Hälfte)
B41: Minimalwert xmin : | D41: =MIN(D12:AG12) -> 2
B42: Maximalwert xmax : | D42: =MAX(D12:AG12) -> 15
B44: Spannweite d: | D44: d = xmax - xmin = | I44: =D42-D41 -> 13
B46: Halbweite H: | D46: H = x3/4 - x1/4 = | I46: =D39-D38 -> 5

Sheet Streuung
B2: Beispiel: Korrektur Matheklausur in der Oberstufe | AA2: ( | AB2: Anzahl der Klausuren: | AH2: =Urliste!P24 -> 8 | AI2: ) | AS2: FALSE
B4: Urliste:
B6: Nummer der Klausur | D6: 1 | E6: 2 | F6: 3 | G6: 4 | H6: 5 | I6: 6 | J6: 7 | K6: 8 | L6: 9 | M6: 10 | N6: 11 | O6: 12 | P6: 13 | Q6: 14 | R6: 15 | S6: 16 | T6: 17 | U6: 18 | V6: 19 | W6: 20 | X6: 21 | Y6: 22 | Z6: 23 | AA6: 24 | AB6: 25 | AC6: 26 | AD6: 27 | AE6: 28 | AF6: 29 | AG6: 30
B7: Notenpunkte | D7: =IF(D6<=$AH$2,Urliste!D7,"") -> 12 | E7: =IF(E6<=$AH$2,Urliste!E7,"") -> 13 | F7: =IF(F6<=$AH$2,Urliste!F7,"") -> 8 | G7: =IF(G6<=$AH$2,Urliste!G7,"") -> 7 | H7: =IF(H6<=$AH$2,Urliste!H7,"") -> 8 | I7: =IF(I6<=$AH$2,Urliste!I7,"") -> 10 | J7: =IF(J6<=$AH$2,Urliste!J7,"") -> 2 | K7: =IF(K6<=$AH$2,Urliste!K7,"") -> 13 | L7: =IF(L6<=$AH$2,Urliste!L7,"") ->  | M7: =IF(M6<=$AH$2,Urliste!M7,"") ->  | N7: =IF(N6<=$AH$2,Urliste!N7,"") ->  | O7: =IF(O6<=$AH$2,Urliste!O7,"") ->  | P7: =IF(P6<=$AH$2,Urliste!P7,"") ->  | Q7: =IF(Q6<=$AH$2,Urliste!Q7,"") ->  | R7: =IF(R6<=$AH$2,Urliste!R7,"") ->  | S7: =IF(S6<=$AH$2,Urliste!S7,"") ->  | T7: =IF(T6<=$AH$2,Urliste!T7,"") ->  | U7: =IF(U6<=$AH$2,Urliste!U7,"") ->  | V7: =IF(V6<=$AH$2,Urliste!V7,"") ->  | W7: =IF(W6<=$AH$2,Urliste!W7,"") ->  | X7: =IF(X6<=$AH$2,Urliste!X7,"") ->  | Y7: =IF(Y6<=$AH$2,Urliste!Y7,"") ->  | Z7: =IF(Z6<=$AH$2,Urliste!Z7,"") ->  | AA7: =IF(AA6<=$AH$2,Urliste!AA7,"") ->  | AB7: =IF(AB6<=$AH$2,Urliste!AB7,"") ->  | AC7: =IF(AC6<=$AH$2,Urliste!AC7,"") ->  | AD7: =IF(AD6<=$AH$2,Urliste!AD7,"") ->  | AE7: =IF(AE6<=$AH$2,Urliste!AE7,"") ->  | AF7: =IF(AF6<=$AH$2,Urliste!AF7,"") ->  | AG7: =IF(AG6<=$AH$2,Urliste!AG7,"") -> 
B10: Häufigkeitstabelle:
D11: =D13*D12 -> 0 | F11: =F13*F12 -> 0 | H11: =H13*H12 -> 26 | J11: =J13*J12 -> 12 | L11: =L13*L12 -> 0 | N11: =N13*N12 -> 10 | P11: =P13*P12 -> 0 | R11: =R13*R12 -> 16 | T11: =T13*T12 -> 7 | V11: =V13*V12 -> 0 | X11: =X13*X12 -> 0 | Z11: =Z13*Z12 -> 0 | AB11: =AB13*AB12 -> 0 | AD11: =AD13*AD12 -> 2 | AF11: =AF13*AF12 -> 0 | AH11: =AH13*AH12 -> 0
B12: Notenpunkte | D12: 15 | F12: 14 | H12: 13 | J12: 12 | L12: 11 | N12: 10 | P12: 9 | R12: 8 | T12: 7 | V12: 6 | X12: 5 | Z12: 4 | AB12: 3 | AD12: 2 | AF12: 1 | AH12: 0 | AK12: Summe
B13: absolute Häufigkeit | D13: =COUNTIF($D$7:$AG$7,D12) -> 0 | F13: =COUNTIF($D$7:$AG$7,F12) -> 0 | H13: =COUNTIF($D$7:$AG$7,H12) -> 2 | J13: =COUNTIF($D$7:$AG$7,J12) -> 1 | L13: =COUNTIF($D$7:$AG$7,L12) -> 0 | N13: =COUNTIF($D$7:$AG$7,N12) -> 1 | P13: =COUNTIF($D$7:$AG$7,P12) -> 0 | R13: =COUNTIF($D$7:$AG$7,R12) -> 2 | T13: =COUNTIF($D$7:$AG$7,T12) -> 1 | V13: =COUNTIF($D$7:$AG$7,V12) -> 0 | X13: =COUNTIF($D$7:$AG$7,X12) -> 0 | Z13: =COUNTIF($D$7:$AG$7,Z12) -> 0 | AB13: =COUNTIF($D$7:$AG$7,AB12) -> 0 | AD13: =COUNTIF($D$7:$AG$7,AD12) -> 1 | AF13: =COUNTIF($D$7:$AG$7,AF12) -> 0 | AH13: =COUNTIF($D$7:$AG$7,AH12) -> 0 | AK13: =SUM(D13:AI13) -> 8
D14: =IF(D13>0,CONCATENATE(" + ",D13," ∙ ",D12),"") ->  | F14: =IF(F13>0,CONCATENATE(" + ",F13," ∙ ",F12),"") ->  | H14: =IF(H13>0,CONCATENATE(" + ",H13," ∙ ",H12),"") -> + 2 ∙ 13 | J14: =IF(J13>0,CONCATENATE(" + ",J13," ∙ ",J12),"") -> + 1 ∙ 12 | L14: =IF(L13>0,CONCATENATE(" + ",L13," ∙ ",L12),"") ->  | N14: =IF(N13>0,CONCATENATE(" + ",N13," ∙ ",N12),"") -> + 1 ∙ 10 | P14: =IF(P13>0,CONCATENATE(" + ",P13," ∙ ",P12),"") ->  | R14: =IF(R13>0,CONCATENATE(" + ",R13," ∙ ",R12),"") -> + 2 ∙ 8 | T14: =IF(T13>0,CONCATENATE(" + ",T13," ∙ ",T12),"") -> + 1 ∙ 7 | V14: =IF(V13>0,CONCATENATE(" + ",V13," ∙ ",V12),"") ->  | X14: =IF(X13>0,CONCATENATE(" + ",X13," ∙ ",X12),"") ->  | Z14: =IF(Z13>0,CONCATENATE(" + ",Z13," ∙ ",Z12),"") ->  | AB14: =IF(AB13>0,CONCATENATE(" + ",AB13," ∙ ",AB12),"") ->  | AD14: =IF(AD13>0,CONCATENATE(" + ",AD13," ∙ ",AD12),"") -> + 1 ∙ 2 | AF14: =IF(AF13>0,CONCATENATE(" + ",AF13," ∙ ",AF12),"") ->  | AH14: =IF(AH13>0,CONCATENATE(" + ",AH13," ∙ ",AH12),"") -> 
B15: relative Häufigkeit | D15: =ROUND(D13/$AH$2,3) -> 0 | F15: =ROUND(F13/$AH$2,3) -> 0 | H15: =ROUND(H13/$AH$2,3) -> 0.25 | J15: =ROUND(J13/$AH$2,3) -> 0.125 | L15: =ROUND(L13/$AH$2,3) -> 0 | N15: =ROUND(N13/$AH$2,3) -> 0.125 | P15: =ROUND(P13/$AH$2,3) -> 0 | R15: =ROUND(R13/$AH$2,3) -> 0.25 | T15: =ROUND(T13/$AH$2,3) -> 0.125 | V15: =ROUND(V13/$AH$2,3) -> 0 | X15: =ROUND(X13/$AH$2,3) -> 0 | Z15: =ROUND(Z13/$AH$2,3) -> 0 | AB15: =ROUND(AB13/$AH$2,3) -> 0 | AD15: =ROUND(AD13/$AH$2,3) -> 0.125 | AF15: =ROUND(AF13/$AH$2,3) -> 0 | AH15: =ROUND(AH13/$AH$2,3) -> 0 | AK15: =SUM(D15:AI15) -> 1
D16: =ROUND(D15,3) -> 0 | F16: =ROUND(F15,3) -> 0 | H16: =ROUND(H15,3) -> 0.25 | J16: =ROUND(J15,3) -> 0.125 | L16: =ROUND(L15,3) -> 0 | N16: =ROUND(N15,3) -> 0.125 | P16: =ROUND(P15,3) -> 0 | R16: =ROUND(R15,3) -> 0.25 | T16: =ROUND(T15,3) -> 0.125 | V16: =ROUND(V15,3) -> 0 | X16: =ROUND(X15,3) -> 0 | Z16: =ROUND(Z15,3) -> 0 | AB16: =ROUND(AB15,3) -> 0 | AD16: =ROUND(AD15,3) -> 0.125 | AF16: =ROUND(AF15,3) -> 0 | AH16: =ROUND(AH15,3) -> 0
D17: =IF($AS$2=FALSE,D13,"") -> 0 | F17: =IF($AS$2=FALSE,F13,"") -> 0 | H17: =IF($AS$2=FALSE,H13,"") -> 2 | J17: =IF($AS$2=FALSE,J13,"") -> 1 | L17: =IF($AS$2=FALSE,L13,"") -> 0 | N17: =IF($AS$2=FALSE,N13,"") -> 1 | P17: =IF($AS$2=FALSE,P13,"") -> 0 | R17: =IF($AS$2=FALSE,R13,"") -> 2 | T17: =IF($AS$2=FALSE,T13,"") -> 1 | V17: =IF($AS$2=FALSE,V13,"") -> 0 | X17: =IF($AS$2=FALSE,X13,"") -> 0 | Z17: =IF($AS$2=FALSE,Z13,"") -> 0 | AB17: =IF($AS$2=FALSE,AB13,"") -> 0 | AD17: =IF($AS$2=FALSE,AD13,"") -> 1 | AF17: =IF($AS$2=FALSE,AF13,"") -> 0 | AH17: =IF($AS$2=FALSE,AH13,"") -> 0
D18: =IF(D13>0,CONCATENATE(" + (",D12," - ",$AK$24,")² ∙ ",D13),"") ->  | F18: =IF(F13>0,CONCATENATE(" + (",F12," - ",$AK$24,")² ∙ ",F13),"") ->  | H18: =IF(H13>0,CONCATENATE(" + (",H12," - ",$AK$24,")² ∙ ",H13),"") -> + (13 - 9,125)² ∙ 2 | J18: =IF(J13>0,CONCATENATE(" + (",J12," - ",$AK$24,")² ∙ ",J13),"") -> + (12 - 9,125)² ∙ 1 | L18: =IF(L13>0,CONCATENATE(" + (",L12," - ",$AK$24,")² ∙ ",L13),"") ->  | N18: =IF(N13>0,CONCATENATE(" + (",N12," - ",$AK$24,")² ∙ ",N13),"") -> + (10 - 9,125)² ∙ 1 | P18: =IF(P13>0,CONCATENATE(" + (",P12," - ",$AK$24,")² ∙ ",P13),"") ->  | R18: =IF(R13>0,CONCATENATE(" + (",R12," - ",$AK$24,")² ∙ ",R13),"") -> + (8 - 9,125)² ∙ 2 | T18: =IF(T13>0,CONCATENATE(" + (",T12," - ",$AK$24,")² ∙ ",T13),"") -> + (7 - 9,125)² ∙ 1 | V18: =IF(V13>0,CONCATENATE(" + (",V12," - ",$AK$24,")² ∙ ",V13),"") ->  | X18: =IF(X13>0,CONCATENATE(" + (",X12," - ",$AK$24,")² ∙ ",X13),"") ->  | Z18: =IF(Z13>0,CONCATENATE(" + (",Z12," - ",$AK$24,")² ∙ ",Z13),"") ->  | AB18: =IF(AB13>0,CONCATENATE(" + (",AB12," - ",$AK$24,")² ∙ ",AB13),"") ->  | AD18: =IF(AD13>0,CONCATENATE(" + (",AD12," - ",$AK$24,")² ∙ ",AD13),"") -> + (2 - 9,125)² ∙ 1 | AF18: =IF(AF13>0,CONCATENATE(" + (",AF12," - ",$AK$24,")² ∙ ",AF13),"") ->  | AH18: =IF(AH13>0,CONCATENATE(" + (",AH12," - ",$AK$24,")² ∙ ",AH13),"") -> 
D19: =IF(D13>0,ROUND((D12-$AK$24)^2*D13,3),"") ->  | F19: =IF(F13>0,ROUND((F12-$AK$24)^2*F13,3),"") ->  | H19: =IF(H13>0,ROUND((H12-$AK$24)^2*H13,3),"") -> 30.031 | J19: =IF(J13>0,ROUND((J12-$AK$24)^2*J13,3),"") -> 8.266 | L19: =IF(L13>0,ROUND((L12-$AK$24)^2*L13,3),"") ->  | N19: =IF(N13>0,ROUND((N12-$AK$24)^2*N13,3),"") -> 0.766 | P19: =IF(P13>0,ROUND((P12-$AK$24)^2*P13,3),"") ->  | R19: =IF(R13>0,ROUND((R12-$AK$24)^2*R13,3),"") -> 2.531 | T19: =IF(T13>0,ROUND((T12-$AK$24)^2*T13,3),"") -> 4.516 | V19: =IF(V13>0,ROUND((V12-$AK$24)^2*V13,3),"") ->  | X19: =IF(X13>0,ROUND((X12-$AK$24)^2*X13,3),"") ->  | Z19: =IF(Z13>0,ROUND((Z12-$AK$24)^2*Z13,3),"") ->  | AB19: =IF(AB13>0,ROUND((AB12-$AK$24)^2*AB13,3),"") ->  | AD19: =IF(AD13>0,ROUND((AD12-$AK$24)^2*AD13,3),"") -> 50.766 | AF19: =IF(AF13>0,ROUND((AF12-$AK$24)^2*AF13,3),"") ->  | AH19: =IF(AH13>0,ROUND((AH12-$AK$24)^2*AH13,3),"") -> 
D20: =IF(D13>0,CONCATENATE(" + ",D19),"") ->  | F20: =IF(F13>0,CONCATENATE(" + ",F19),"") ->  | H20: =IF(H13>0,CONCATENATE(" + ",H19),"") -> + 30,031 | J20: =IF(J13>0,CONCATENATE(" + ",J19),"") -> + 8,266 | L20: =IF(L13>0,CONCATENATE(" + ",L19),"") ->  | N20: =IF(N13>0,CONCATENATE(" + ",N19),"") -> + 0,766 | P20: =IF(P13>0,CONCATENATE(" + ",P19),"") ->  | R20: =IF(R13>0,CONCATENATE(" + ",R19),"") -> + 2,531 | T20: =IF(T13>0,CONCATENATE(" + ",T19),"") -> + 4,516 | V20: =IF(V13>0,CONCATENATE(" + ",V19),"") ->  | X20: =IF(X13>0,CONCATENATE(" + ",X19),"") ->  | Z20: =IF(Z13>0,CONCATENATE(" + ",Z19),"") ->  | AB20: =IF(AB13>0,CONCATENATE(" + ",AB19),"") ->  | AD20: =IF(AD13>0,CONCATENATE(" + ",AD19),"") -> + 50,766 | AF20: =IF(AF13>0,CONCATENATE(" + ",AF19),"") ->  | AH20: =IF(AH13>0,CONCATENATE(" + ",AH19),"") -> 
C24: =CONCATENATE(D13," ∙ ",D12," + ",F13," ∙ ",F12," + ",H13," ∙ ",H12," + ",J13," ∙ ",J12," + ",L13," ∙ ",L12," + ",N13," ∙ ",N12," + ",P13," ∙ ",P12," + ",R13," ∙ ",R12," + ",T13," ∙ ",T12," + ",V13," ∙ ",V12," + ",X13," ∙ ",X12," + ",Z13," ∙ ",Z12," + ",AB13," ∙ ",AB12," + ",AD13," ∙ ",AD12," + ",AF13," ∙ ",AF12," + ",AH13," ∙ ",AH12) -> 0 ∙ 15 + 0 ∙ 14 + 2 ∙ 13 + 1 ∙ 12 + 0 ∙ 11 + 1 ∙ 10 + 0 ∙ 9 + 2 ∙ 8 + 1 ∙ 7 + 0 ∙ 6 + 0 ∙ 5 + 0 ∙ 4 + 0 ∙ 3 + 1 ∙ 2 + 0 ∙ 1 + 0 ∙ 0 | AJ24: ≅ | AK24: =ROUND(SUM(D11:AI11)/$AH$2,3) -> 9.125
C25: =$AH$2 -> 8
C27: =CONCATENATE(D14,F14,H14,J14,L14,N14,P14,R14,T14,V14,X14,Z14,AB14,AD14,AF14,AH14) -> + 2 ∙ 13 + 1 ∙ 12 + 1 ∙ 10 + 2 ∙ 8 + 1 ∙ 7 + 1 ∙ 2 | AJ27: ≅ | AK27: =ROUND(SUM(D11:AI11)/$AH$2,3) -> 9.125
C28: =C25 -> 8
C31: =CONCATENATE(D18,F18,H18,J18,L18,N18,P18,R18,T18,V18,X18,Z18,AB18,AD18,AF18,AH18,) -> + (13 - 9,125)² ∙ 2 + (12 - 9,125)² ∙ 1 + (10 - 9,125)² ∙ 1 + (8 - 9,125)² ∙ 2 + (7 - 9,125)² ∙ 1 + (2 - 9,125)² ∙ 1 | AJ31: ≅ | AK31: =ROUND(SUM(D19:AI19)/$AH$2,3) -> 12.11
C32: =$AH$2 -> 8
C34: =CONCATENATE(D20,F20,H20,J20,L20,N20,P20,R20,T20,V20,X20,Z20,AB20,AD20,AF20,AH20) -> + 30,031 + 8,266 + 0,766 + 2,531 + 4,516 + 50,766 | AJ34: ≅
C35: =$AH$2 -> 8
D39: =ROUND(SQRT(AK31),3) -> 3.48
